bitfinex-derivatives/quotes_SOLF0:USTF0_20250131
["timestamp","ask_amount","ask_price","bid_price","bid_amount"]
[1738312510850,7.48268875,235.78,235.7,10.34748875]
[1738312511358,14.102,235.86,235.72,0.02856008]
[1738312511359,7.51194123,235.76,235.72,0.02856008]
[1738312511657,7.48268875,235.76,235.72,0.02856008]
[1738312511956,7.5147984,235.76,235.72,0.02856008]
[1738312512659,0.03210965,235.76,235.72,7.51124883]
[1738312515061,0.03210965,235.76,235.72,0.02856008]
[1738312515561,7.48268875,235.74,235.72,0.02856008]
[1738312534878,20.22268875,235.74,235.72,0.02856008]
[1738312535078,0.78004101,235.73,235.61,1.3688]
[1738312535276,7.48268875,235.68,235.61,1.3688]
[1738312536176,7.48268875,235.68,235.62,0.03033128]
[1738312536480,0.02943268,235.67,235.62,0.03033128]
[1738312543089,0.02943268,235.67,235.62,7.51302003]
[1738312543292,0.02943268,235.67,235.64,7.48268875]
[1738312552887,0.02943268,235.67,235.62,7.51302003]
[1738312553085,0.02943268,235.67,235.62,0.03033128]
[1738312553086,7.48268875,235.66,235.62,0.03033128]
[1738312553488,7.48268875,235.64,235.62,0.03033128]
[1738312561795,7.48268875,235.64,235.51,8.92908875]
[1738312561994,7.48268875,235.58,235.51,8.92908875]
[1738312562998,0.03006879,235.57,235.52,0.02970888]
[1738312566800,0.03006879,235.57,235.53,7.48268875]
[1738312567001,0.03006879,235.57,235.55,7.48268875]
[1738312568498,0.03006879,235.57,235.52,0.02970888]
[1738312568697,0.03006879,235.57,235.53,7.48268875]
[1738312569103,0.03006879,235.57,235.52,0.02970888]
[1738312570695,0.03006879,235.57,235.53,7.48268875]
[1738312573511,7.48268875,235.54,235.52,0.02970888]
[1738312573804,7.48268875,235.54,235.4,8.87918875]
[1738312574004,7.48268875,235.46,235.4,8.87918875]
[1738312574204,7.48268875,235.44,235.38,7.48268875]
[1738312574805,0.02853084,235.43,235.39,0.02993971]
[1738312586722,7.48268875,235.42,235.39,0.02993971]
[1738312586924,0.02853084,235.43,235.39,0.02993971]
[1738312587122,0.02853084,235.43,235.42,7.48268875]
[1738312588021,7.48268875,235.55,235.42,7.48268875]
[1738312588222,7.48268875,235.55,235.48,7.48268875]
[1738312588820,2.6891,235.56,235.4,2.7865]
[1738312588821,7.48268875,235.53,235.46,7.48268875]
[1738312589019,7.48268875,235.51,235.44,7.48268875]
[1738312589325,7.48268875,235.51,235.47,0.02963738]
[1738312592224,7.48268875,235.49,235.47,0.02963738]
[1738312593326,20.21268875,235.49,235.36,7.48268875]
[1738312593624,7.48268875,235.44,235.36,7.48268875]
[1738312594027,7.48268875,235.44,235.38,7.48268875]
[1738312594427,0.02923192,235.43,235.39,0.03208832]
[1738312602836,0.02923192,235.43,235.4,7.48268875]
[1738312603134,0.02923192,235.43,235.42,7.48268875]
[1738312603437,12.73,235.51,235.42,7.48268875]
[1738312603629,7.48268875,235.52,235.45,7.48268875]
[1738312604628,0.02737627,235.51,235.46,0.02963935]
[1738312606137,7.48268875,235.5,235.46,0.02963935]
[1738312607738,0.02737627,235.51,235.47,7.48268875]
[1738312608939,0.02737627,235.51,235.46,0.02963935]
[1738312610241,0.02737627,235.51,235.47,7.48268875]
[1738312611844,0.02737627,235.51,235.49,7.48268875]
[1738312618851,0.02737627,235.51,235.47,8.93898875]
[1738312620053,0.02737627,235.51,235.49,7.48268875]
[1738312621956,11.67088499,235.58,235.49,7.48268875]
[1738312622152,7.48268875,235.61,235.54,7.48268875]
[1738312622453,8.89518875,235.63,235.54,7.48268875]
[1738312623150,0.03229051,235.61,235.56,7.51479421]
[1738312625755,0.03229051,235.61,235.58,7.48268875]
[1738312625956,0.03229051,235.61,235.6,7.48268875]
[1738312627752,7.48268875,235.69,235.6,7.48268875]
[1738312627957,1.4405,235.7,235.63,7.48268875]
[1738312628957,7.48268875,235.73,235.65,7.48268875]
[1738312629158,0.02865881,235.69,235.65,7.48268875]
[1738312629558,0.02865881,235.69,235.67,7.48268875]
[1738312633666,0.02865881,235.69,235.65,7.48268875]
[1738312636463,7.51134756,235.69,235.64,0.03112793]
[1738312637066,7.48268875,235.67,235.64,0.03112793]
[1738312643171,0.02865881,235.69,235.65,7.48268875]
[1738312643365,0.02865881,235.69,235.68,7.48268875]
[1738312651372,7.48268875,235.8,235.68,7.48268875]
[1738312651676,7.48268875,235.82,235.74,7.48268875]
[1738312652177,7.48268875,235.86,235.78,7.48268875]
[1738312652371,0.77968607,235.85,235.78,7.48268875]
[1738312652574,0.02958307,235.84,235.8,0.02962742]
[1738312654680,7.48268875,235.82,235.8,0.02962742]
[1738312657580,7.51227182,235.84,235.8,0.02962742]
[1738312660484,7.48268875,235.82,235.7,7.48268875]
[1738312660784,7.48268875,235.77,235.7,7.48268875]
[1738312660981,12.73,235.76,235.43,330.0]
[1738312661285,7.48268875,235.61,235.53,7.48268875]
[1738312661481,7.48268875,235.59,235.51,8.94568875]
[1738312661683,7.48268875,235.57,235.55,0.02936112]
[1738312662080,7.48268875,235.57,235.47,7.48268875]
[1738312662286,7.48268875,235.55,235.54,0.0298936]
[1738312664585,0.03001339,235.57,235.54,0.0298936]
[1738312684613,7.50895351,235.57,235.54,0.0298936]
[1738312685016,7.47894012,235.55,235.54,0.0298936]
[1738312685611,20.20894012,235.55,235.54,0.0298936]
[1738312685812,20.98957126,235.55,235.44,1.463]
[1738312686007,7.47894012,235.47,235.39,7.47894012]
[1738312686512,7.47894012,235.45,235.37,7.47894012]
[1738312686914,0.03265299,235.43,235.39,0.02723691]
[1738312690515,0.03265299,235.43,235.39,7.50617703]
[1738312692621,0.03265299,235.43,235.41,7.47894012]
[1738312693916,20.20894012,235.42,235.39,0.02723691]
[1738312694218,7.47894012,235.4,235.28,8.87234012]
[1738312694519,7.47894012,235.36,235.28,8.87234012]
[1738312695222,0.03180156,235.34,235.3,0.03242587]
[1738312695923,7.47894012,235.32,235.3,0.03242587]
[1738312696617,0.03180156,235.34,235.3,0.03242587]
[1738312702227,2.66,235.41,235.3,0.03242587]
[1738312702525,93.50586164,235.42,235.3,11.74172829]
[1738312702721,81.82620824,235.42,235.33,11.70930242]
[1738312702922,14.36930242,235.48,235.33,11.70930242]
[1738312703119,0.78088523,235.47,235.33,11.70930242]
[1738312703327,14.36930242,235.48,235.33,11.70930242]
[1738312703527,0.02912515,235.42,235.38,0.02788447]
[1738312712430,11.73842757,235.42,235.38,0.02788447]
[1738312712931,24.46842757,235.42,235.38,0.02788447]
[1738312715431,0.02912515,235.42,235.38,0.02788447]
[1738312716133,11.73842757,235.42,235.38,0.02788447]
[1738312716532,24.46842757,235.42,235.38,0.02788447]
[1738312716927,24.43930242,235.39,235.24,11.70930242]
[1738312718234,0.03126396,235.34,235.29,0.02884989]
[1738312719436,0.03126396,235.34,235.3,11.70930242]
[1738312720040,2.68,235.41,235.3,11.70930242]
[1738312720341,2.68,235.41,235.33,11.70930242]
[1738312721339,0.02791496,235.39,235.35,0.03051668]
[1738312731745,11.70930242,235.38,235.35,0.03051668]
[1738312738547,0.02791496,235.39,235.35,0.03051668]
[1738312746560,7.4919395,235.36,235.35,0.03051668]
[1738312751962,7.4919395,235.38,235.35,0.03051668]
[1738312761562,0.02791496,235.39,235.35,0.03051668]
[1738312761770,0.02791496,235.39,235.36,7.4919395]
[1738312762267,0.02791496,235.39,235.35,0.03051668]
[1738312766868,0.02791496,235.39,235.36,7.4919395]
[1738312767768,0.02791496,235.39,235.38,7.4919395]
[1738312767967,19.1689388,235.48,235.38,7.4919395]
[1738312768172,19.1689388,235.48,235.41,7.4919395]
[1738312769170,0.03097583,235.47,235.42,0.02967842]
[1738312769673,0.03097583,235.47,235.43,7.4919395]
[1738312776983,0.03097583,235.47,235.42,0.02967842]
[1738312778180,0.03097583,235.47,235.43,7.4919395]
[1738312781886,0.03097583,235.47,235.42,0.02967842]
[1738312786189,7.4919395,235.46,235.42,0.02967842]
[1738312789989,0.03097583,235.47,235.42,0.02967842]
[1738312794601,7.4919395,235.46,235.42,0.02967842]
[1738312798998,15.40097583,235.47,235.42,0.02967842]
[1738312799493,2.67097583,235.47,235.42,0.02967842]
[1738312800301,2.67097583,235.47,235.43,7.4919395]
[1738312804805,2.67097583,235.47,235.42,0.02967842]
[1738312805006,7.4919395,235.46,235.42,0.02967842]
[1738312806604,7.4919395,235.44,235.42,0.02967842]
[1738312807807,7.4919395,235.46,235.42,0.02967842]
[1738312808405,7.4919395,235.44,235.42,0.02967842]
[1738312809408,20.2219395,235.44,235.42,0.02967842]
[1738312812311,20.2219395,235.46,235.42,0.02967842]
[1738312813309,7.4919395,235.44,235.42,0.02967842]
[1738312822528,20.2219395,235.44,235.42,0.02967842]
[1738312878469,7.4919395,235.44,235.42,0.02967842]
[1738312882171,20.2519395,235.44,235.3,7.4919395]
[1738312882375,7.4919395,235.38,235.3,7.4919395]
[1738312882869,7.4919395,235.36,235.28,7.4919395]
[1738312883373,0.0275746,235.34,235.3,0.03267321]
[1738312888581,7.5195141,235.34,235.3,0.03267321]
[1738312906995,7.4919395,235.49,235.33,7.4919395]
[1738312907293,7.4919395,235.49,235.41,7.4919395]
[1738312908000,7.4919395,235.49,235.43,0.02968894]
[1738312908299,0.03205603,235.47,235.43,0.02968894]
[1738312910004,0.03205603,235.47,235.44,7.4919395]
[1738312913000,0.03205603,235.47,235.43,0.02968894]
[1738312918706,7.4919395,235.46,235.43,0.02968894]
[1738312940519,0.03205603,235.47,235.43,0.02968894]
[1738312943125,7.4919395,235.46,235.43,0.02968894]
[1738312948023,0.03205603,235.47,235.43,0.02968894]
[1738312963242,7.4919395,235.46,235.43,0.02968894]
[1738312981861,7.4919395,235.44,235.43,0.02968894]
[1738312986964,7.4919395,235.46,235.43,0.02968894]
[1738312990169,0.03205603,235.47,235.43,0.02968894]
[1738312999272,7.4919395,235.46,235.43,0.02968894]
[1738313005280,7.4919395,235.44,235.43,0.02968894]
[1738313030199,0.03205603,235.47,235.43,0.02968894]
[1738313032699,7.52399553,235.47,235.43,0.02968894]
[1738313038603,0.03205603,235.47,235.43,0.02968894]
[1738313043807,7.52399553,235.47,235.43,0.02968894]
[1738313046106,0.03205603,235.47,235.43,0.02968894]
[1738313046307,0.03205603,235.47,235.43,7.52162844]
[1738313047704,0.03205603,235.47,235.43,0.02968894]
[1738313051612,7.4919395,235.44,235.43,0.02968894]
[1738313054213,7.4919395,235.38,235.35,7.85025765]
[1738313056917,0.03064371,235.39,235.35,7.85025765]
[1738313060617,0.03064371,235.39,235.35,15.34219715]
[1738313062722,0.03064371,235.39,235.37,7.4919395]
[1738313107461,0.03064371,235.39,235.35,6.39195765]
[1738313108455,0.03064371,235.39,235.35,13.88389715]
[1738313110052,0.03064371,235.39,235.37,7.4919395]
[1738313121470,7.4919395,235.52,235.37,7.4919395]
[1738313121670,7.4919395,235.52,235.44,7.4919395]
[1738313122161,7.4919395,235.52,235.42,7.4919395]
[1738313122571,0.03015084,235.49,235.45,0.0293605]
[1738313122971,7.4919395,235.46,235.45,0.0293605]
[1738313125372,7.4919395,235.48,235.45,0.0293605]
[1738313130674,7.4919395,235.48,235.4,7.4919395]
[1738313132074,7.4919395,235.48,235.42,0.03153264]
[1738313141683,7.4919395,235.46,235.42,0.03153264]
[1738313142082,7.4919395,235.44,235.42,0.03153264]
[1738313143882,7.4919395,235.44,235.36,52.83819834]
[1738313144079,7.4919395,235.4,235.36,52.83819834]
[1738313144785,15.6356,235.53,235.36,52.83819834]
[1738313144988,0.03007465,235.4,235.36,52.86920576]
[1738313145190,7.4919395,235.42,235.36,52.83819834]
[1738313145387,7.4919395,235.42,235.36,52.87061355]
[1738313145388,0.03151778,235.4,235.36,52.87061355]
[1738313149491,0.03151778,235.4,235.36,60.36255305]
[1738313156304,0.03151778,235.4,235.36,7.52435471]
[1738313160701,0.03151778,235.4,235.38,7.4919395]
[1738313166707,0.03151778,235.4,235.36,7.52435471]
[1738313169710,0.03151778,235.4,235.36,0.03241521]
[1738313170711,7.52345728,235.4,235.36,0.03241521]
[1738313175620,7.4919395,235.37,235.36,0.03241521]
[1738313175813,7.4919395,235.37,235.24,7.4919395]
[1738313176014,7.4919395,235.3,235.24,7.4919395]
[1738313176918,0.02721333,235.29,235.25,0.0302062]
[1738313181519,7.4919395,235.28,235.25,0.0302062]
[1738313181725,7.4919395,235.26,235.25,0.0302062]
[1738313185828,0.02721333,235.29,235.25,0.0302062]
[1738313186922,7.51915283,235.29,235.25,0.0302062]
[1738313188129,0.02721333,235.29,235.25,0.0302062]
[1738313192728,7.4919395,235.27,235.25,0.0302062]
[1738313194033,7.51915283,235.29,235.25,0.0302062]
[1738313194531,0.02721333,235.29,235.25,0.0302062]
[1738313197037,7.51915283,235.29,235.25,0.0302062]
[1738313197738,0.02721333,235.29,235.25,0.0302062]
[1738313199633,0.02721333,235.29,235.27,7.4919395]
[1738313199839,7.4919395,235.37,235.27,7.4919395]
[1738313200040,16.45438308,235.51,235.13,14.105]
[1738313200041,7.4919395,235.39,235.3,7.4919395]
[1738313201032,0.02914545,235.37,235.32,0.02789492]
[1738313201931,0.02914545,235.37,235.32,7.51983442]
[1738313202135,0.02914545,235.37,235.34,7.4919395]
[1738313202538,0.02914545,235.37,235.32,0.02789492]
[1738313203139,0.02914545,235.37,235.32,7.51983442]
[1738313203342,0.02914545,235.37,235.34,7.4919395]
[1738313204039,0.02914545,235.37,235.32,7.51983442]
[1738313208541,0.02914545,235.37,235.32,0.02789492]
[1738313208945,7.4919395,235.36,235.32,0.02789492]
[1738313209139,7.4919395,235.34,235.32,0.02789492]
[1738313211939,7.4919395,235.34,235.21,1.4067]
[1738313212147,7.4919395,235.27,235.21,1.4067]
[1738313212342,7.4919395,235.29,235.22,7.4919395]
[1738313212640,7.4919395,235.31,235.22,7.4919395]
[1738313213147,0.02960713,235.29,235.24,0.02972419]
[1738313214946,7.52154663,235.29,235.24,0.02972419]
[1738313215846,0.02960713,235.29,235.24,0.02972419]
[1738313216740,0.02960713,235.29,235.24,7.52166369]
[1738313217146,0.02960713,235.29,235.26,7.4919395]
[1738313222045,0.02960713,235.29,235.24,7.52166369]
[1738313222548,0.02960713,235.29,235.26,7.4919395]
[1738313224049,0.02960713,235.29,235.24,7.52166369]
[1738313226050,0.02960713,235.29,235.24,0.02972419]
[1738313226952,7.52154663,235.29,235.24,0.02972419]
[1738313227754,7.4919395,235.27,235.24,0.02972419]
[1738313229754,7.4919395,235.25,235.24,0.02972419]
[1738313230450,7.4919395,235.25,235.15,7.4919395]
[1738313230756,7.4919395,235.23,235.15,7.4919395]
[1738313231455,7.4919395,235.21,235.15,7.4919395]
[1738313231652,7.52066293,235.21,235.17,0.03200473]
[1738313232454,7.4919395,235.19,235.17,0.03200473]
[1738313233253,7.4919395,235.19,235.07,7.4919395]
[1738313233452,7.4919395,235.15,235.07,7.4919395]
[1738313234561,0.03226716,235.13,235.09,0.03106431]
[1738313237958,0.03226716,235.13,235.09,7.52300381]
[1738313241060,0.03226716,235.13,235.09,0.03106431]
[1738313242158,7.4919395,235.24,235.11,7.4919395]
[1738313242358,7.4919395,235.24,235.16,7.4919395]
[1738313243460,0.03076976,235.22,235.18,0.02809349]
[1738313248262,7.52270926,235.22,235.18,0.02809349]
[1738313249964,7.4919395,235.2,235.18,0.02809349]
[1738313255467,7.4919395,235.2,235.09,7.4919395]
[1738313255668,0.03076976,235.22,235.09,7.4919395]
[1738313255669,7.4919395,235.16,235.09,7.4919395]
[1738313255870,7.4919395,235.14,235.07,7.4919395]
[1738313256170,7.4919395,235.14,235.05,7.4919395]
[1738313256370,7.4919395,235.14,235.07,7.4919395]
[1738313256570,0.02848927,235.12,235.07,7.51880446]
[1738313258675,7.52042877,235.12,235.07,0.02686496]
[1738313260173,7.4919395,235.1,235.07,0.02686496]
[1738313267675,0.02848927,235.12,235.07,0.02686496]
[1738313267875,1.4283,235.25,235.11,7.4919395]
[1738313268172,1.4283,235.25,235.18,7.4919395]
[1738313268477,8.9202395,235.25,235.16,7.4919395]
[1738313269275,0.02909316,235.23,235.18,0.02914505]
[1738313278685,0.02909316,235.23,235.18,2.81494505]
[1738313280786,0.02909316,235.23,235.18,1.40814505]
[1738313282486,0.02909316,235.23,235.2,11.71419958]
[1738313283092,0.02909316,235.23,235.19,1.4748]
[1738313283791,0.02909316,235.23,235.18,1.40814505]
[1738313290498,0.02909316,235.23,235.21,7.49446429]
[1738313297703,4.1096,235.34,235.21,7.49446429]
[1738313298003,4.1096,235.34,235.27,7.49446429]
[1738313298502,7.49446429,235.35,235.27,7.49446429]
[1738313298900,0.02907045,235.33,235.29,0.03149885]
[1738313299301,7.52353474,235.33,235.29,0.03149885]
[1738313299504,7.49446429,235.31,235.29,0.03149885]
[1738313301703,7.52353474,235.33,235.29,0.03149885]
[1738313303206,0.02907045,235.33,235.29,7.52596314]
[1738313307509,0.02907045,235.33,235.29,0.03149885]
[1738313308301,20.24446429,235.31,235.14,154.65995429]
[1738313308601,7.49446429,235.24,235.14,154.65995429]
[1738313308807,7.49446429,235.24,235.16,125.22685629]
[1738313309007,7.49446429,235.26,235.16,125.22685629]
[1738313309202,7.49446429,235.26,235.16,117.732392]
[1738313309402,0.02755502,235.23,235.19,0.03253449]
[1738313311308,0.02755502,235.23,235.22,7.49446429]
[1738313312607,0.02755502,235.23,235.2,11.70839033]
[1738313318618,4.2006,235.38,235.2,23.41678066]
[1738313318810,4.2006,235.38,235.26,11.70839033]
[1738313319410,15.90899033,235.38,235.23,11.70839033]
[1738313319618,11.70839033,235.35,235.2,11.70839033]
[1738313319910,0.02706506,235.33,235.28,0.02896071]
[1738313327216,0.02706506,235.33,235.2,11.70839033]
[1738313327419,0.02706506,235.33,235.14,2.7001]
[1738313327420,0.02706506,235.33,235.17,11.70839033]
[1738313327620,12.75,235.34,235.17,11.70839033]
[1738313327818,11.70839033,235.32,235.17,11.70839033]
[1738313328314,11.70839033,235.32,235.22,0.02817829]
[1738313328519,0.03210334,235.27,235.22,0.02817829]
[1738313335826,7.49521571,235.26,235.22,0.02817829]
[1738313336524,10.17491571,235.26,235.22,0.02817829]
[1738313337721,7.49521571,235.24,235.17,7.49521571]
[1738313338927,0.03264166,235.23,235.18,0.0274384]
[1738313339325,0.03264166,235.23,235.19,7.49521571]
[1738313339626,0.03264166,235.23,235.21,7.49521571]
[1738313348038,0.03264166,235.23,235.19,7.49521571]
[1738313370655,0.03264166,235.23,235.18,0.0274384]
[1738313375054,7.49521571,235.22,235.18,0.0274384]
[1738313375555,7.49521571,235.2,235.18,0.0274384]
[1738313378956,7.49521571,235.22,235.18,0.0274384]
[1738313379154,0.03264166,235.23,235.18,0.0274384]
[1738313379956,0.03264166,235.23,235.19,7.49521571]
[1738313380256,0.03264166,235.23,235.22,7.49521571]
[1738313395164,0.03264166,235.23,235.2,7.49521571]
[1738313399274,0.03264166,235.23,235.22,7.49521571]
[1738313402783,0.03264166,235.23,235.2,7.49521571]
[1738313405881,0.03264166,235.23,235.18,7.52265411]
[1738313406179,0.03264166,235.23,235.18,0.0274384]
[1738313410983,7.49521571,235.22,235.18,0.0274384]
[1738313411583,0.03264166,235.23,235.18,0.0274384]
[1738313416985,7.49521571,235.22,235.18,0.0274384]
[1738313417185,7.49521571,235.2,235.18,0.0274384]
[1738313418582,7.49521571,235.2,235.1,7.49521571]
[1738313418790,7.49521571,235.17,235.1,7.49521571]
[1738313419687,0.03183263,235.16,235.11,0.03064651]
[1738313422890,0.03183263,235.16,235.12,7.49521571]
[1738313424594,0.03183263,235.16,235.11,0.03064651]
[1738313425090,0.03183263,235.16,235.14,7.49521571]
[1738313425394,0.03183263,235.16,235.12,7.49521571]
[1738313425694,0.03183263,235.16,235.11,0.03064651]
[1738313430197,7.49521571,235.13,235.11,0.03064651]
[1738313430696,7.49521571,235.13,235.05,59.50419186]
[1738313430902,7.49521571,235.09,235.02,7.49521571]
[1738313431996,0.03254279,235.08,235.03,0.02887616]
[1738313432996,7.49521571,235.07,235.03,0.02887616]
[1738313433503,0.03254279,235.08,235.03,0.02887616]
[1738313433893,0.03254279,235.08,235.04,7.49521571]
[1738313439500,0.03254279,235.08,235.06,7.49521571]
[1738313441303,0.03254279,235.08,235.04,7.49521571]
[1738313442103,0.03254279,235.08,235.03,0.02887616]
[1738313447607,0.03254279,235.08,235.04,7.49521571]
[1738313450307,0.03254279,235.08,235.03,0.02887616]
[1738313454108,0.03254279,235.08,235.04,7.49521571]
[1738313455313,0.03254279,235.08,235.03,0.02887616]
[1738313455515,7.49521571,235.07,235.03,0.02887616]
[1738313457315,0.03254279,235.08,235.03,0.02887616]
[1738313460723,0.03254279,235.08,235.04,7.49521571]
[1738313461123,0.03254279,235.08,235.03,0.02887616]
[1738313462023,7.49521571,235.07,235.03,0.02887616]
[1738313464327,7.49521571,235.05,235.03,0.02887616]
[1738313464823,7.49521571,235.07,235.03,0.02887616]
[1738313468329,0.03254279,235.08,235.03,0.02887616]
[1738313468527,0.03254279,235.08,235.06,7.49521571]
[1738313471931,0.03254279,235.08,235.04,7.49521571]
[1738313476030,0.03254279,235.08,235.06,7.49521571]
[1738313486438,0.03254279,235.08,235.04,7.49521571]
[1738313490840,0.03254279,235.08,235.03,0.02887616]
[1738313491144,0.03254279,235.08,235.04,7.49521571]
[1738313497343,0.03254279,235.08,235.06,7.49521571]
[1738313502254,0.03254279,235.08,235.04,7.49521571]
[1738313504356,0.03254279,235.08,235.06,7.49521571]
[1738313522975,0.03254279,235.08,235.04,7.49521571]
[1738313531980,0.03254279,235.08,235.03,0.02887616]
[1738313531981,0.03254279,235.08,235.06,7.49521571]
[1738313537186,0.03254279,235.08,235.04,7.49521571]
[1738313537486,0.03254279,235.08,235.03,0.02887616]
[1738313538286,0.03254279,235.08,235.04,7.49521571]
[1738313540593,0.03254279,235.08,235.03,0.02887616]
[1738313555300,0.03254279,235.08,235.04,7.49521571]
[1738313572204,0.03254279,235.08,235.06,7.49521571]
[1738313573708,0.03254279,235.08,235.04,7.49521571]
[1738313578313,0.03254279,235.08,235.03,0.02887616]
[1738313594025,0.03254279,235.08,235.04,7.49521571]
[1738313594325,0.03254279,235.08,235.06,7.49521571]
[1738313611639,0.03254279,235.08,235.04,7.49521571]
[1738313614448,0.03254279,235.08,235.06,7.49521571]
[1738313637159,6.72926197,235.18,235.06,7.49521571]
[1738313637358,6.72926197,235.18,235.13,7.49521571]
[1738313638257,6.75818801,235.18,235.13,7.52563602]
[1738313640756,6.75818801,235.18,235.13,0.03042031]
[1738313640958,14.25340372,235.18,235.13,0.03042031]
[1738313642257,6.75818801,235.18,235.13,7.52563602]
[1738313642452,6.75818801,235.18,235.14,7.49521571]
[1738313642759,6.75818801,235.18,235.16,7.49521571]
[1738313643863,7.49521571,235.32,235.16,7.49521571]
[1738313644166,10.30431571,235.34,235.26,7.49521571]
[1738313644462,7.49521571,235.32,235.24,7.49521571]
[1738313644667,7.49521571,235.3,235.22,7.49521571]
[1738313645262,0.02711906,235.28,235.24,0.029483]
[1738313645663,0.02711906,235.28,235.24,7.52469871]
[1738313646763,0.02711906,235.28,235.24,0.029483]
[1738313647363,0.02711906,235.28,235.24,7.52469871]
[1738313652362,0.02711906,235.28,235.24,0.029483]
[1738313653766,7.52233477,235.28,235.24,0.029483]
[1738313654061,7.49521571,235.26,235.18,7.49521571]
[1738313655264,0.03051487,235.24,235.2,0.03185359]
[1738313655565,7.52573058,235.24,235.2,0.03185359]
[1738313657964,7.49521571,235.22,235.2,0.03185359]
[1738313658163,7.49521571,235.22,235.16,7.49521571]
[1738313659566,7.49521571,235.22,235.17,0.02855065]
[1738313662472,7.52573058,235.24,235.17,0.02855065]
[1738313667072,7.49521571,235.22,235.17,0.02855065]
[1738313667277,7.49521571,235.2,235.17,0.02855065]
[1738313670581,7.49521571,235.2,235.12,7.49521571]
[1738313671880,0.02954399,235.18,235.14,0.02683831]
[1738313684503,0.02954399,235.18,235.14,7.52205402]
[1738313684801,0.02954399,235.18,235.16,7.49521571]
[1738313692406,0.02954399,235.18,235.14,7.52205402]
[1738313692700,0.02954399,235.18,235.14,0.02683831]
[1738313693205,0.02954399,235.18,235.17,7.49521571]
[1738313693404,7.49521571,235.3,235.17,7.49521571]
[1738313693604,7.49521571,235.3,235.22,7.49521571]
[1738313693805,1.409,235.31,235.24,7.49521571]
[1738313694704,0.03089976,235.3,235.25,0.03199011]
[1738313696207,7.52611547,235.3,235.25,0.03199011]
[1738313698008,0.03089976,235.3,235.25,0.03199011]
[1738313701109,7.52611547,235.3,235.25,0.03199011]
[1738313702209,0.03089976,235.3,235.25,0.03199011]
[1738313711914,7.52611547,235.3,235.25,0.03199011]
[1738313712716,0.03089976,235.3,235.25,0.03199011]
[1738313712915,0.03089976,235.3,235.26,7.49521571]
[1738313715218,0.03089976,235.3,235.26,7.49521571]
[1738313722825,0.03089976,235.3,235.28,7.49521571]
[1738313729430,7.49521571,235.29,235.25,0.03199011]
[1738313729621,7.49521571,235.27,235.25,0.03199011]
[1738313730029,7.49521571,235.29,235.25,0.03199011]
[1738313731233,0.03089976,235.3,235.25,7.52720582]
[1738313734032,0.03089976,235.3,235.25,0.03199011]
[1738313739538,0.03089976,235.3,235.27,7.49521571]
[1738313739731,0.03089976,235.3,235.29,7.49521571]
[1738313741040,0.03089976,235.3,235.27,7.49521571]
[1738313741240,0.03089976,235.3,235.25,0.03199011]
[1738313742341,0.03089976,235.3,235.26,7.49521571]
[1738313744543,0.03089976,235.3,235.28,7.49521571]
[1738313756653,1.4589,235.39,235.35,7.49521571]
[1738313757544,1.4912135,235.39,235.35,7.52672537]
[1738313762459,1.4912135,235.39,235.35,0.03150966]
[1738313763662,7.49521571,235.36,235.25,7.49521571]
[1738313763861,7.49521571,235.33,235.25,7.49521571]
[1738313764063,7.49521571,235.35,235.27,7.49521571]
[1738313764265,7.49521571,235.33,235.27,7.49521571]
[1738313764964,0.02806612,235.32,235.28,0.03155564]
[1738313771068,0.02806612,235.32,235.29,7.49521571]
[1738313771365,0.02806612,235.32,235.31,7.49521571]
[1738313782180,0.02806612,235.32,235.28,0.03155564]
[1738313782384,7.52328183,235.32,235.28,0.03155564]
[1738313785382,0.02806612,235.32,235.28,0.03155564]
[1738313792590,7.52328183,235.32,235.28,0.03155564]
[1738313792785,8.95748183,235.32,235.28,0.03155564]
[1738313795994,1.46226612,235.32,235.28,0.03155564]
[1738313802999,1.46226612,235.32,235.29,7.49521571]
[1738313803289,0.02806612,235.32,235.29,7.49521571]
[1738313803494,0.02806612,235.32,235.31,7.49521571]
[1738313832727,0.02806612,235.32,235.29,7.49521571]
[1738313832921,0.02806612,235.32,235.28,0.03155564]
[1738313838027,0.02806612,235.32,235.29,7.49521571]
[1738313839229,0.02806612,235.32,235.31,7.49521571]
[1738313840429,0.02806612,235.32,235.29,7.49521571]
[1738313846733,0.02806612,235.32,235.31,7.49521571]
[1738313855941,0.02806612,235.32,235.29,7.49521571]
[1738313867751,0.02806612,235.32,235.31,7.49521571]
[1738313890377,0.02806612,235.32,235.29,7.49521571]
[1738313893480,0.02806612,235.32,235.31,7.49521571]
[1738313896581,0.02806612,235.32,235.29,7.49521571]
[1738313903080,0.02806612,235.32,235.28,0.03155564]
[1738313903282,7.49521571,235.31,235.28,0.03155564]
[1738313914093,0.02806612,235.32,235.28,0.03155564]
[1738313923899,7.49521571,235.31,235.28,0.03155564]
[1738313928296,0.02806612,235.32,235.28,0.03155564]
[1738313929204,0.02806612,235.32,235.3,7.49521571]
[1738313950127,0.02806612,235.32,235.28,7.52677135]
[1738313950916,0.02806612,235.32,235.3,7.49521571]
[1738313957722,0.02806612,235.32,235.28,0.03155564]
[1738313958922,7.52328183,235.32,235.28,0.03155564]
[1738313959217,7.49521571,235.3,235.28,0.03155564]
[1738313961530,7.52328183,235.32,235.28,0.03155564]